Cogmind - Beta 15 @@@ ROGUE MODE // 2025.05.27 @ 23:55:58 Player: aloola Result: Destroyed by G-47 Trooper with Particle Gun Performance ------------- Evolutions (2) 1000 Regions Visited (7) 1400 Robots Destroyed (0) 0 Value Destroyed (0) 0 Prototype IDs (23) 460 Alien Tech Used (0) 0 Bonus (864) 864 TOTAL SCORE: 3724 Bonus ------- Pacifist 564 Aligned with FarCom 300 Cogmind --------- Core Integrity 0/550 Matter 300/300 Energy 98/100 System Corruption 0% Temperature Cool (9) Movement Core (50) Location -8/Materials Parts ------- > --- POWER (5) -------- (None) > --- PROPULSION (2) --- (None) > --- UTILITY (2) ------ (None) > --- WEAPON (2) ------- (None) > --- INVENTORY (5) ---- (None) Peak State ------------ None Favorites ----------- Power None Propulsion None Utility None Weapon None Build | -11 -10 -10 -9 -9 -9 -8 -8 ------- Run | Yrd Mat Min Mat Min Exi Min Mat Slots Evolved 4 | . . . 2 . . . 2 Power 4 | . . . 2 . . . 2 Propulsion . | . . . . . . . . Utility . | . . . . . . . . Weapon . | . . . . . . . . Parts Attached . | . . . . . . . . Power . | . . . . . . . . Engine . | . . . . . . . . Core . | . . . . . . . . Reactor . | . . . . . . . . Propulsion . | . . . . . . . . Treads . | . . . . . . . . Leg . | . . . . . . . . Wheel . | . . . . . . . . Hover . | . . . . . . . . Flight . | . . . . . . . . Utility . | . . . . . . . . Device . | . . . . . . . . Storage . | . . . . . . . . Processor . | . . . . . . . . Hackware . | . . . . . . . . Protection . | . . . . . . . . Artifact . | . . . . . . . . Weapon . | . . . . . . . . Energy Gun . | . . . . . . . . Energy Cannon . | . . . . . . . . Ballistic Gun . | . . . . . . . . Ballistic Cannon . | . . . . . . . . Launcher . | . . . . . . . . Special Weapon . | . . . . . . . . Impact Weapon . | . . . . . . . . Slashing Weapon . | . . . . . . . . Piercing Weapon . | . . . . . . . . Special Melee Weapon . | . . . . . . . . Unidentified Prototypes . | . . . . . . . . Parts Lost . | . . . . . . . . Power . | . . . . . . . . Propulsion . | . . . . . . . . Utility . | . . . . . . . . Weapon . | . . . . . . . . Highest Loss Streak . | . . . . . . . . To Critical Strikes . | . . . . . . . . Average Backups . | . . . . . . . . Power . | . . . . . . . . Propulsion . | . . . . . . . . Utility . | . . . . . . . . Weapon . | . . . . . . . . Tool/Special . | . . . . . . . . Unused Backups . | . . . . . . . . Power . | . . . . . . . . Propulsion . | . . . . . . . . Utility . | . . . . . . . . Weapon . | . . . . . . . . Tool/Special . | . . . . . . . . Average Slot Usage (%) . | . . . . . . . . Peak Build Rating . | . . . . . . . . Average Rating . | . . . . . . . . On Entrance . | . . . . . . . . Naked Turns 623 | . 86 15 169 20 117 60 156 Heaviest Build . | . . . . . . . . Greatest Support 3 | 3 3 3 3 3 3 3 3 Greatest Overweight (x) . | . . . . . . . . Average Overweight (x) . | . . . . . . . . Largest Inventory Capacity 5 | 5 5 5 5 5 5 5 5 Average Capacity 5 | 5 5 5 5 5 5 5 5 Most Carried . | . . . . . . . . Average Carried . | . . . . . . . . Final Capacity 5 | 5 5 5 5 5 5 5 5 Final Carried . | . . . . . . . . Class Distribution -------------------- 100% | Mutant Dominant Class ---------------- Mutant | -10/Materials Mutant | -10/Mines Mutant | -9/Materials Mutant | -9/Mines Mutant | -9/Exiles Mutant | -8/Mines Mutant | -8/Materials Resources | -11 -10 -10 -9 -9 -9 -8 -8 ----------- Run | Yrd Mat Min Mat Min Exi Min Mat Matter Collected 198 | 198 . . . . . . . Remotely . | . . . . . . . . Salvage Created . | . . . . . . . . Parts . | . . . . . . . . Haulers Intercepted . | . . . . . . . . Recyclers Shooed . | . . . . . . . . Parts Field Recycled . | . . . . . . . . Retrieved Matter . | . . . . . . . . Parts Self-Destructed . | . . . . . . . . Prevented . | . . . . . . . . Kills | -11 -10 -10 -9 -9 -9 -8 -8 ------- Run | Yrd Mat Min Mat Min Exi Min Mat Combat Hostiles Destroyed . | . . . . . . . . Classes Destroyed . | . . . . . . . . Best Kill Streak . | . . . . . . . . Combat Bots Only . | . . . . . . . . Max Kills in Single Turn . | . . . . . . . . Gunslinging . | . . . . . . . . Exploded . | . . . . . . . . Melee . | . . . . . . . . Uniques/NPCs Destroyed . | . . . . . . . . Combat | -11 -10 -10 -9 -9 -9 -8 -8 -------- Run | Yrd Mat Min Mat Min Exi Min Mat Hostile Shots Fired 72 | . . 5 23 . . 18 26 Missed 34 | . . 1 11 . . 9 13 Hits 38 | . . 4 12 . . 9 13 Melee 1 | . . . . . . . 1 Projectile 37 | . . 4 12 . . 9 12 AOE 3 | . . . . . . . 3 Critical Strikes 1 | . . . . . . . 1 Damage Taken 866 | 8 . 46 146 . . 112 554 Core 866 | 8 . 46 146 . . 112 554 Absorbed by Shields . | . . . . . . . . Core Remaining (%) 69 | 96 . 78 . . . 35 . Volleys Fired . | . . . . . . . . Largest . | . . . . . . . . Hottest . | . . . . . . . . Shots Fired . | . . . . . . . . Gun . | . . . . . . . . Cannon . | . . . . . . . . Launcher . | . . . . . . . . Special . | . . . . . . . . Kinetic . | . . . . . . . . Thermal . | . . . . . . . . Explosive . | . . . . . . . . Electromagnetic . | . . . . . . . . Robot Hit Streak . | . . . . . . . . Robot Miss Streak . | . . . . . . . . Penetration Max . | . . . . . . . . Secondary Targets . | . . . . . . . . Shots Hit Robots . | . . . . . . . . Core Hits . | . . . . . . . . Critical Kills . | . . . . . . . . Critical Parts Destroyed . | . . . . . . . . Critical Strikes . | . . . . . . . . Melee Attacks . | . . . . . . . . Impact . | . . . . . . . . Slashing . | . . . . . . . . Piercing . | . . . . . . . . Sneak Attacks . | . . . . . . . . Combat Hostiles . | . . . . . . . . Follow-up Attacks . | . . . . . . . . Damage Inflicted 23 | 16 . . 3 . . 4 . Guns . | . . . . . . . . Cannons . | . . . . . . . . Explosions . | . . . . . . . . Melee . | . . . . . . . . Ramming 23 | 16 . . 3 . . 4 . Kinetic . | . . . . . . . . Thermal . | . . . . . . . . Explosive . | . . . . . . . . Electromagnetic . | . . . . . . . . Impact . | . . . . . . . . Slashing . | . . . . . . . . Piercing . | . . . . . . . . Highest Corruption . | . . . . . . . . Average Corruption . | . . . . . . . . Corruption Purged . | . . . . . . . . Corruption Blocked . | . . . . . . . . Overload Shots . | . . . . . . . . Overflow Damage . | . . . . . . . . Projectiles . | . . . . . . . . Explosions . | . . . . . . . . Melee . | . . . . . . . . Knockbacks . | . . . . . . . . Impact . | . . . . . . . . Kinetic . | . . . . . . . . Secondary . | . . . . . . . . Self-Inflicted Damage 11 | 8 . . 1 . . 2 . Shots . | . . . . . . . . Rammed 3 | 1 . . 1 . . 1 . Targets Rammed 3 | 1 . . 1 . . 1 . Kicked . | . . . . . . . . Crushed . | . . . . . . . . Highest Temperature . | . . . . . . . . Average Temperature . | . . . . . . . . Received Heat Transfer 141 | . . 30 66 . . 36 9 Siege Activations . | . . . . . . . . Martial Activations . | . . . . . . . . Shielding Activations . | . . . . . . . . Robots Disrupted . | . . . . . . . . Combat Hostiles . | . . . . . . . . Robots Corrupted . | . . . . . . . . Combat Hostiles . | . . . . . . . . Parts Fried . | . . . . . . . . Impact Corruptions . | . . . . . . . . Robots Melted . | . . . . . . . . Combat Hostiles . | . . . . . . . . Parts Melted . | . . . . . . . . Heat Transferred . | . . . . . . . . Parts Sabotaged . | . . . . . . . . Parts Stolen . | . . . . . . . . Parts Stripped . | . . . . . . . . Power Chain Reactions . | . . . . . . . . Alert | -11 -10 -10 -9 -9 -9 -8 -8 ------- Run | Yrd Mat Min Mat Min Exi Min Mat Maximum Alert Level . | . . . . . . . . Low Security (%) 100 | 100 100 100 100 100 . 100 100 Level 1 . | . . . . . . . . Level 2 . | . . . . . . . . Level 3 . | . . . . . . . . Level 4 . | . . . . . . . . Level 5 . | . . . . . . . . High Security . | . . . . . . . . Max Security . | . . . . . . . . Peak Influence 74 | . 24 1 74 21 . 5 30 Initial 21 | . . 1 . 21 . . 1 Average 13 | . 10 1 25 20 . . 10 Influence Increases 223 | . 44 . 99 . . 15 65 Successful Hack 58 | . 14 . 9 . . . 35 Partial Spotted 75 | . 30 . 45 . . . . Lose Combat Pursuer 90 | . . . 45 . . 15 30 Influence Decreases 215 | . 40 3 46 43 11 10 62 Entered New Map 52 | . . 3 1 33 11 . 4 Time Decay 163 | . 40 . 45 10 . 10 58 Squads Dispatched 6 | . 1 . 3 . . . 2 Investigation 3 | . . . 2 . . . 1 Extermination . | . . . . . . . . Reinforcement 3 | . 1 . 1 . . . 1 Assault . | . . . . . . . . Garrison . | . . . . . . . . Intercept . | . . . . . . . . Searches Triggered . | . . . . . . . . Construction Impeded . | . . . . . . . . Haulers Reinforced . | . . . . . . . . Active Scanning Responses . | . . . . . . . . Cargo Convoy Interrupts . | . . . . . . . . Stealth | -11 -10 -10 -9 -9 -9 -8 -8 --------- Run | Yrd Mat Min Mat Min Exi Min Mat Distress Signals 6 | . 1 . 1 . . . 4 Communications Jammed . | . . . . . . . . Distress Signals . | . . . . . . . . Times Spotted 37 | . 3 2 12 . . 6 14 Peak Tracking Total 7 | . 6 2 7 . . 6 7 Tactical Retreats 3 | . . . 1 . . 1 1 Traps | -11 -10 -10 -9 -9 -9 -8 -8 ------- Run | Yrd Mat Min Mat Min Exi Min Mat Traps Triggered . | . . . . . . . . Indirectly . | . . . . . . . . Trap Hack Attempts . | . . . . . . . . Triggered . | . . . . . . . . Disarmed . | . . . . . . . . Reprogrammed . | . . . . . . . . Reused . | . . . . . . . . Traps Extracted . | . . . . . . . . Installed . | . . . . . . . . Triggered . | . . . . . . . . Machines | -11 -10 -10 -9 -9 -9 -8 -8 ---------- Run | Yrd Mat Min Mat Min Exi Min Mat Machines Disabled . | . . . . . . . . Max in Single Turn . | . . . . . . . . Machines Repaired . | . . . . . . . . Machines Dismantled . | . . . . . . . . Machines Sabotaged . | . . . . . . . . Overloaded Fab Kills . | . . . . . . . . Hacking | -11 -10 -10 -9 -9 -9 -8 -8 --------- Run | Yrd Mat Min Mat Min Exi Min Mat Machines Accessed 15 | . 2 . 6 . 2 . 5 Terminals 12 | . 2 . 5 . . . 5 Fabricators . | . . . . . . . . Repair Stations 1 | . . . 1 . . . . Recycling Units . | . . . . . . . . Scanalyzers . | . . . . . . . . Garrison Access . | . . . . . . . . Total Hacks 44 | . 5 . 20 . 3 . 16 Successful 17 | . 1 . 5 . 3 . 8 Failed 27 | . 4 . 15 . . . 8 Catastrophic 4 | . . . 4 . . . . Database Lockouts . | . . . . . . . . Manual 19 | . . . 9 . 1 . 9 Terminals 39 | . 5 . 18 . . . 16 Fabricators . | . . . . . . . . Repair Stations 2 | . . . 2 . . . . Recycling Units . | . . . . . . . . Scanalyzers . | . . . . . . . . Garrison Access . | . . . . . . . . Terminal Hacks 13 | . 1 . 5 . 3 . 4 Record 2 | . . . . . 2 . . Robot Analysis 1 | . . . 1 . . . . Branch Access Points 2 | . . . 1 . . . 1 Terminal Index 1 | . . . . . . . 1 Locate Traps 1 | . . . . . . . 1 Recall Investigation 1 | . . . 1 . . . . Zone Layout 4 | . 1 . 2 . . . 1 Proto ID Catalog 1 | . . . . . 1 . . Fabricator Hacks . | . . . . . . . . Repair Station Hacks . | . . . . . . . . Recycling Unit Hacks . | . . . . . . . . Scanalyzer . | . . . . . . . . Garrison Access Hacks . | . . . . . . . . Unauthorized Hacks 4 | . . . . . . . 4 Terminals 4 | . . . . . . . 4 Botnet 4 | . . . . . . . 4 Fabricators . | . . . . . . . . Repair Stations . | . . . . . . . . Recycling Units . | . . . . . . . . Scanalyzers . | . . . . . . . . Garrison Access . | . . . . . . . . Data Cores Recovered . | . . . . . . . . Used . | . . . . . . . . Hacking Detections 13 | . 2 . 6 . . . 5 Full Trace Events 4 | . . . 3 . . . 1 Feedback Events . | . . . . . . . . Feedback Blocked . | . . . . . . . . Robot Schematics Acquired . | . . . . . . . . Robots Built . | . . . . . . . . Authchips . | . . . . . . . . Time . | . . . . . . . . Total Robot Build Rating . | . . . . . . . . Part Schematics Acquired . | . . . . . . . . Parts Built . | . . . . . . . . Authchips . | . . . . . . . . Time . | . . . . . . . . Total Part Build Rating . | . . . . . . . . Parts Repaired . | . . . . . . . . Time . | . . . . . . . . Parts Recycled . | . . . . . . . . Recycled Matter . | . . . . . . . . Retrieved Matter . | . . . . . . . . Retrieved Components . | . . . . . . . . Parts Scanalyzed . | . . . . . . . . Part Schematics Acquired . | . . . . . . . . Parts Damaged . | . . . . . . . . Bothacking | -11 -10 -10 -9 -9 -9 -8 -8 ------------ Run | Yrd Mat Min Mat Min Exi Min Mat Used RIF Installer . | . . . . . . . . Robots Hacked . | . . . . . . . . Non-combat . | . . . . . . . . Combat . | . . . . . . . . Robot Hacks Applied . | . . . . . . . . Relay Couplers Released . | . . . . . . . . Fabnet Peak Effective % . | . . . . . . . . Robots Rewired . | . . . . . . . . Allies Hacked . | . . . . . . . . Hacks Repelled . | . . . . . . . . Allies | -11 -10 -10 -9 -9 -9 -8 -8 -------- Run | Yrd Mat Min Mat Min Exi Min Mat Total Allies . | . . . . . . . . Largest Group . | . . . . . . . . Highest-Rated Group . | . . . . . . . . Highest-Rated Ally . | . . . . . . . . Total Orders . | . . . . . . . . Ally Attacks . | . . . . . . . . Total Damage . | . . . . . . . . Kills . | . . . . . . . . Allies Corrupted . | . . . . . . . . Allies Melted . | . . . . . . . . Intel | -11 -10 -10 -9 -9 -9 -8 -8 ------- Run | Yrd Mat Min Mat Min Exi Min Mat Active Infowar (turns) . | . . . . . . . . Robot Analysis Total 1 | . . . 1 . . . . Derelict Logs Recovered 1 | . . . . 1 . . . Drone Launches . | . . . . . . . . Drone Recoveries . | . . . . . . . . Exploration | -11 -10 -10 -9 -9 -9 -8 -8 ------------- Run | Yrd Mat Min Mat Min Exi Min Mat Turns Passed 649 | 26 86 15 169 20 117 60 156 Spaces Moved 1251 | 50 167 30 316 39 234 109 306 Core 1251 | 50 167 30 316 39 234 109 306 Treads . | . . . . . . . . Legs . | . . . . . . . . Wheels . | . . . . . . . . Hover . | . . . . . . . . Flight . | . . . . . . . . Fastest Speed 50 | 50 50 50 50 50 50 50 50 Average Speed 50 | 50 50 50 50 50 50 50 50 Slowest Speed 50 | 50 50 50 50 50 50 50 50 Overloaded Moves . | . . . . . . . . Propulsion Burnouts . | . . . . . . . . Robots Hopped . | . . . . . . . . Potential Cave-ins . | . . . . . . . . Cave-ins Triggered . | . . . . . . . . Exploration Rate (%) 30 | 4 37 16 41 12 61 27 46 Regions Visited 7 Branch Regions 4 Pre-discovered Areas . | . . . . . . . . Known Exits Taken 1 | . . . 1 . . . . Unknown Exits Taken 6 | 1 1 1 . 1 1 1 . Scrap Searched . | . . . . . . . . Spaces Dug . | . . . . . . . . Terrain Destroyed . | . . . . . . . . Melee . | . . . . . . . . Projectile . | . . . . . . . . AOE . | . . . . . . . . Terrain Rammed . | . . . . . . . . Walls Destroyed . | . . . . . . . . Machines Disabled . | . . . . . . . . Actions | -11 -10 -10 -9 -9 -9 -8 -8 --------- Run | Yrd Mat Min Mat Min Exi Min Mat Total 1266 | 50 168 29 326 38 233 113 309 Wait 19 | . 2 . 10 . . 4 3 Move 1244 | 49 166 29 315 38 233 108 306 Hop . | . . . . . . . . Pick Up . | . . . . . . . . Fast Attach . | . . . . . . . . Attach . | . . . . . . . . Detach . | . . . . . . . . Swap . | . . . . . . . . Drop . | . . . . . . . . Fire . | . . . . . . . . Melee . | . . . . . . . . Ram 3 | 1 . . 1 . . 1 . Kick . | . . . . . . . . Crush . | . . . . . . . . Escape Stasis . | . . . . . . . . Rewire . | . . . . . . . . Trap . | . . . . . . . . Miscellaneous . | . . . . . . . . Route ------- -11/Scrapyard -10/Materials -10/Mines -9/Materials (discovered 3 exits: *Mat / *Min x2) -9/Mines -9/Exiles -8/Mines -8/Materials (discovered 2 exits: Sto x2) History --------- Turn | Location | Event 3 | -11/Scrapyard | Discovered new exit (range 15) 27 | -11/Scrapyard | Entered Materials 105 | -10/Materials | Discovered new exit (range 16) 113 | -10/Materials | Entered Mines 124 | -10/Mines | Discovered new exit (range 8) 128 | -10/Mines | Entered Materials 128 | -9/Materials | Evolved 2 slots: Power x2 219 | -9/Materials | Discovered new exit (range 16) 252 | -9/Materials | Identified exit to Mines 297 | -9/Materials | Entered Mines 313 | -9/Mines | Build established: Mutant 315 | -9/Mines | Deemed a non-threat by the Exiles lab entrance 315 | -9/Mines | Discovered new exit (range 5) 317 | -9/Mines | Entered Exiles 330 | -9/Exiles | Met 8R-AWN 339 | -9/Exiles | Met EX-HEX 352 | -9/Exiles | Met EX-BIN 360 | -9/Exiles | Aligned with FarCom system 361 | -9/Exiles | Given EX-Vault access code 372 | -9/Exiles | Opened EX-Vault 393 | -9/Exiles | Warned to stay clear of 0b10 Research branches 408 | -9/Exiles | Met EX-DEC 425 | -9/Exiles | Discovered new exit (range 15) 434 | -9/Exiles | Entered Mines 469 | -8/Mines | Core integrity fell below 50% 489 | -8/Mines | Discovered new exit (range 11) 494 | -8/Mines | Entered Materials 494 | -8/Materials | Evolved 2 slots: Power x2 495 | -8/Materials | Identified exit to Storage 540 | -8/Materials | Core integrity fell below 50% 646 | -8/Materials | Core integrity fell below 20% 650 | -8/Materials | Destroyed by G-47 Trooper with Particle Gun Last Messages --------------- 00639_ U-05 Engineer works on Electrolysis Chamber. 00639_ W-25 Informer sends out distress signal. 00640_ K-01 Serf collects debris. 00640_ U-05 Engineer works on Electrolysis Chamber. 00641_ Knocked back. 00641_ U-05 Engineer knocked back. 00641_ U-05 Engineer destroyed. 00645_ Fusion Modulator explodes. 00645_ G-47 Trooper destroyed. 00645_ U-05 Engineer destroyed. 00645_ C-17 Slicer destroyed. 00645_ Fusion Modulator explodes. 00645_ K-01 Serf destroyed. 00645_ Fusion Modulator explodes. 00647_ Knocked back. 00647_ W-25 Informer destroyed. 00647_ C-17 Slicer destroyed. 00648_ Knocked back. 00648_ K-01 Serf knocked back. 00648_ W-25 Informer sends out distress signal. Map ----- +----------------------------------------------------+ | #???#% ##########??????????????????????????????? | | #???# #???????????????????????????????????????? | | #???# #???????????????????????????????????????? | | #???# #???????????????????????????????????????? | | ##???# #???????????????????????????????????????? | | ######% #???????????#######?????????????????????? | | # #???????????# ?????????????????????? | | + % #???????????# ?????????????????????? | | # #???????????# ?????????????????????? | | # #???????????# ?????????????????????? | | ###### ###?????????# ?????????????????????? | | ###" ########### ?????????????????????? | | / + ?????????????????????? | | #######???????w ??????????????????????? | | % #??????????####+######????????????????? | | #??????????# ! ????????????????? | | #??????##??# ????????????????? | | #### #?????? ?# !!! ???? ???????????? | | ???#########??????? ?# !!! """ /// ??????????? | | ????????????????????" #! !!! """ ///???????????? | | ????????????????????? # """ /?????????????? | | ??????????????????????/ag ???????????????? | | ??????????????????????# ] ?????????????????? | | ??????????????????????# r ???????????????????? | | ??????????????????????# g????????????????????? | | ?###########??????????# @#???#+#??????Y?????????? | | ?# #??????????# #?? ?????????????????? | | ?# """ #??????????# #?""""?????????????????? | | ?# "T" #??????????# # """""????????????????? | | ?# """ #??????????# kg# """""????????????????? | | ?# """ #??????????# + """""""??????????????? | | ?# """ = #??????????# # """"""" #????????????? | | ?# #??????????# # ??????????????? | | ?# #######?#### # ! ?????????????? | | ?## """"" ### #?#######?????????????? | | #"" / c #?????????????????????? | | ! =% #?????????????????????? | | % #?????????????????????? | | " =* g"""= ##?????????????????????? | | " *% %! """ #??????????????????????? | | "" = = """ #??????????????????????? | | ! | * #??????????????????????? | | % #??????????????????????? | | ??????????????????????? | | ###""""T"""""""# ?????????????????????? | | ????#"""""###### ????????????????????? | | ????#######????# ############????????????????????? | | ???????????????# #???????????????????????????????? | | ???????????????# #???????????????????????????????? | | ???????????????# #???????????????????????????????? | +----------------------------------------------------+ Best States ------------- Heat Dissipation 31 Energy Generation 5 Energy Capacity 100 Matter Stores 300 Matter Capacity 300 Sight Range 16 Terrain Scan Density 10 Evasion (%) 50 Item Schematics ----------------- None Robot Schematics ------------------ None Fabricated ------------ Nothing Repaired ---------- Nothing Alien Tech Used ----------------- None Achievements -------------- None Challenges ------------ None Game ------ Seed AssaultExperimentalWheel Manual? 0 Play Time 00:19:12 Cumulative 86.6 hours Start 2025.05.27 @ 18:09:36 End 2025.05.27 @ 23:55:58 Sessions 2 Manual Loads 0 Difficulty Rogue Special Mode None Game No. 42 Rogue 42 Adventurer 0 Explorer 0 Win Type - Total 4 Types 4/0/0/0/0/0/0/0/0/0 Lore% 58 Gallery% 49 Achievement% 38 Wizard Run 0 Options --------- Layout 0 ASCII 0 Keyboard 1 Movement Numpad Keybinds 0 Fullscreen 1 Font 18/Cog Map View 76x50 Zoom Use 0% Tactical HUD 1 Map Filters NONE Filters NONE Steam 1 RUN: 4ff772b0-fa2c-4b6c-afe3-bb1c90940f0e